Cogmind - Beta 16.1 @@@ ROGUE MODE // 2026.02.12 @ 20:30:16 Player: Rudrot Result: Destroyed by G-47 Trooper with Particle Gun Performance ------------- Evolutions (2) 1000 Regions Visited (3) 600 Robots Destroyed (111) 555 Value Destroyed (2272) 2272 Prototype IDs (3) 60 Alien Tech Used (0) 0 Bonus (0) 0 TOTAL SCORE: 4487 Bonus ------- None Cogmind --------- Core Integrity 0/550 Matter 270/300 Energy 160/160 System Corruption 1% Temperature Cool (9) Movement Walking (120) Location -8/Materials Parts ------- > --- POWER (1) -------- Light Nuclear Core > --- PROPULSION (2) --- Aluminum Leg Aluminum Leg > --- UTILITY (6) ------ Visual Processing Unit Improved Sensor Array Signal Interpreter Improved Propulsion Shielding Improved Propulsion Shielding Light Armor Plating > --- WEAPON (2) ------- Katana Axe > --- INVENTORY (5) ---- Missile Launcher Katana Axe Axe Axe Peak State ------------ > --- POWER ------------ Light Deuterium Engine > --- PROPULSION ------- Aluminum Leg Aluminum Leg > --- UTILITY ---------- Visual Processing Unit Improved Sensor Array Signal Interpreter Improved Propulsion Shielding Improved Propulsion Shielding Light Armor Plating > --- WEAPON ----------- Katana Axe > --- INVENTORY -------- Missile Launcher Katana Axe Axe Axe [Rating: 25] Favorites ----------- Power Improved Ion Engine Engine Improved Ion Engine Power Core Light Nuclear Core Propulsion Aluminum Leg Treads Light Treads Leg Aluminum Leg Wheel Wheel Flight Unit Improved Flight Unit Utility Signal Interpreter Device Sensor Array Storage Small Storage Unit Processor Signal Interpreter Protection Light Armor Plating Weapon Mace Energy Gun Medium Laser Ballistic Gun Assault Rifle Launcher Missile Launcher Impact Weapon Mace Slashing Weapon Katana Build | -11 -10 -9 -8 ------- Run | Yrd Mat Mat Mat Slots Evolved 4 | . . 2 2 Power . | . . . . Propulsion . | . . . . Utility 4 | . . 2 2 Weapon . | . . . . Parts Attached 77 | 7 11 34 25 Power 12 | 1 2 5 4 Engine 11 | 1 2 5 3 Core 1 | . . . 1 Reactor . | . . . . Propulsion 26 | 2 6 12 6 Treads 3 | . . 1 2 Leg 17 | 2 6 5 4 Wheel 2 | . . 2 . Hover . | . . . . Flight 4 | . . 4 . Utility 20 | 2 2 6 10 Device 8 | 1 1 3 3 Storage 1 | 1 . . . Processor 2 | . 1 1 . Hackware . | . . . . Protection 9 | . . 2 7 Artifact . | . . . . Weapon 19 | 2 1 11 5 Energy Gun 3 | 1 1 1 . Energy Cannon . | . . . . Ballistic Gun 6 | 1 . 4 1 Ballistic Cannon . | . . . . Launcher 3 | . . 2 1 Special Weapon . | . . . . Impact Weapon 4 | . . 4 . Slashing Weapon 3 | . . . 3 Piercing Weapon . | . . . . Special Melee Weapon . | . . . . Unidentified Prototypes 1 | . . 1 . Parts Lost 33 | . 3 19 11 Power 7 | . 1 3 3 Propulsion 10 | . 1 7 2 Utility 9 | . . 5 4 Weapon 7 | . 1 4 2 Highest Loss Streak 7 | . 2 7 6 To Critical Strikes 1 | . . 1 . Average Backups 5 | 1 6 5 4 Power . | 1 . . . Propulsion . | . 1 . . Utility 2 | . 4 2 . Weapon 2 | . . 2 3 Tool/Special . | . . . . Unused Backups 8 | . 2 2 4 Power 3 | . 2 1 . Propulsion . | . . . . Utility 2 | . . 1 1 Weapon 3 | . . . 3 Tool/Special . | . . . . Average Slot Usage (%) 83 | . 98 77 77 Engine 9 | . 13 8 6 Leg 17 | . 28 12 13 Flight 1 | . . 2 . Device 7 | . 4 10 7 Storage 5 | . 12 4 . Processor 14 | . 11 14 18 Protection 6 | . . 6 13 Energy Gun 6 | . 18 1 . Ballistic Gun 3 | . 7 2 . Launcher 1 | . . 2 2 Impact Weapon 4 | . . 9 2 Slashing Weapon 3 | . . . 11 Peak Build Rating 25 | 9 9 17 25 Average Rating 11 | 5 7 10 18 On Entrance 7 | . 9 7 15 Avg Prop Armor Cover (%) . | . . . . Naked Turns . | . . . . Heaviest Build 21 | 15 15 18 21 Greatest Support 40 | 20 20 23 40 Greatest Overweight (x) 6 | 1 1 3 6 Average Overweight (x) . | . . . . Largest Inventory Capacity 8 | 8 8 8 5 Average Capacity 6 | 7 7 6 5 Most Carried 8 | 2 8 8 5 Average Carried 5 | 1 6 5 4 Final Capacity 8 | 8 8 5 5 Final Carried 7 | 2 7 4 5 Class Distribution -------------------- 68% | Mutant 11% | Scavenger-Assassin 11% | Assassin 5% | Scavenger-Mutant Dominant Class ---------------- Mutant | -10/Materials Mutant | -9/Materials Scavenger-Assassin | -8/Materials Resources | -11 -10 -9 -8 ----------- Run | Yrd Mat Mat Mat Matter Collected 1676 | 286 284 636 470 Remotely . | . . . . Salvage Created 3349 | 157 507 1527 1158 Parts 175 | 12 32 53 78 Haulers Intercepted 7 | . . 4 3 Recyclers Shooed 4 | 1 . 1 2 Parts Field Recycled . | . . . . Retrieved Matter . | . . . . Parts Self-Destructed . | . . . . Prevented . | . . . . Parts Restored . | . . . . Kills | -11 -10 -9 -8 ------- Run | Yrd Mat Mat Mat Combat Hostiles Destroyed 61 | . 13 26 22 Melee 19 | . . 5 14 Guns 23 | . 12 11 . AOE 11 | . . 4 7 Classes Destroyed 12 | 2 3 6 1 Worker 9 | . 1 5 3 Builder 9 | . . 2 7 Tunneler 5 | 3 . 2 . Hauler 7 | . . 4 3 Recycler 8 | 1 2 4 1 Mechanic 2 | . . 1 1 Operator 2 | . . 2 . Watcher 8 | . . 5 3 Swarmer 22 | . 6 8 8 Grunt 24 | . 7 10 7 Sentry 14 | . . 8 6 Hunter 1 | . . . 1 Best Kill Streak 10 | 3 6 6 10 Combat Bots Only 7 | . 3 6 7 Max Kills in Single Turn 5 | 1 2 2 5 Gunslinging 1 | . . 1 . Exploded 3 | . . 1 3 Melee 1 | . . 1 1 Uniques/NPCs Destroyed . | . . . . Combat | -11 -10 -9 -8 -------- Run | Yrd Mat Mat Mat Hostile Shots Fired 496 | . 115 191 190 Missed 140 | . 30 51 59 Hits 356 | . 85 140 131 Projectile 356 | . 85 140 131 Critical Strikes 14 | . 2 4 8 Actively Blocked 1 | . . . 1 Damage Taken 4396 | . 935 1676 1785 Core 1158 | . 221 387 550 Absorbed by Shields . | . . . . Redirected to Shielding 197 | . . 51 146 Regen/Repaired (Parts) 32 | . . . 32 Core Remaining (%) 38 | 100 11 3 . Volleys Fired 139 | 6 59 52 22 Largest 2 | 2 2 2 1 Hottest 90 | 70 90 90 36 Shots Fired 222 | 12 113 75 22 Gun 196 | 12 113 62 9 Cannon . | . . . . Launcher 26 | . . 13 13 Special . | . . . . Kinetic 108 | 6 44 49 9 Thermal 73 | 6 59 8 . Explosive 26 | . . 13 13 Electromagnetic 15 | . 10 5 . Robot Hit Streak 12 | 4 12 7 4 Robot Miss Streak 4 | 2 4 3 4 Penetration Max . | . . . . Secondary Targets 5 | . 3 2 . Max Gunslinging Chain 1 | . 1 1 . Shots Hit Robots 259 | 8 70 112 69 Core Hits 116 | 5 26 41 44 Critical Kills 2 | . . 2 . Critical Parts Destroyed 18 | . . 14 4 Critical Strikes 29 | . 6 16 7 Burn 5 | . 5 . . Corrupt 1 | . 1 . . Smash 20 | . . 16 4 Sever 3 | . . . 3 Melee Attacks 151 | . . 76 75 Impact 98 | . . 76 22 Slashing 53 | . . . 53 Piercing . | . . . . Sneak Attacks 29 | . . 18 11 Combat Hostiles . | . . . . Follow-up Attacks 7 | . . 4 3 Damage Inflicted 7799 | 114 889 3478 3318 Guns 1456 | 114 889 409 44 Cannons . | . . . . Explosions 1608 | . . 551 1057 Melee 4735 | . . 2518 2217 Ramming . | . . . . Kinetic 725 | 64 350 267 44 Thermal 646 | 50 500 96 . Explosive 1608 | . . 551 1057 Electromagnetic 85 | . 39 46 . Impact 3112 | . . 2518 594 Slashing 1623 | . . . 1623 Piercing . | . . . . Highest Corruption 1 | . . . 1 Average Corruption 1 | . . . 1 Corruption Purged . | . . . . Corruption Blocked . | . . . . Effects 10 | . . . 10 Message Errors 1 | . . . 1 Matter Fused 2 | . . . 2 Energy Discharges 2 | . . . 2 Parts Rejected 1 | . . . 1 Parts Fused 1 | . . . 1 Data Loss (minor) 1 | . . . 1 Alerts 2 | . . . 2 Overload Shots . | . . . . Overflow Damage 1365 | . . 909 456 Projectiles . | . . . . Explosions 75 | . . 26 49 Melee 1290 | . . 883 407 Knockbacks 14 | . . 13 1 Impact 14 | . . 13 1 Kinetic . | . . . . Secondary . | . . . . Self-Inflicted Damage 125 | . . 21 104 Shots 5 | . . 1 4 Rammed . | . . . . Targets Rammed . | . . . . Kicked . | . . . . Crushed . | . . . . Highest Temperature 160 | 18 160 67 20 Average Temperature 41 | 7 49 20 8 Received Heat Transfer 1506 | . 396 516 594 Siege Activations . | . . . . Martial Activations . | . . . . Shielding Activations . | . . . . Robots Disrupted . | . . . . Combat Hostiles . | . . . . Robots Corrupted 22 | . . 21 1 Combat Hostiles 7 | . . 6 1 Parts Fried 33 | . . 28 5 Impact Corruptions 47 | . . 42 5 Robots Melted 1 | . 1 . . Combat Hostiles 1 | . 1 . . Parts Melted 3 | . 2 1 . Heat Transferred 2257 | 148 1850 259 . Parts Sabotaged . | . . . . Parts Stolen . | . . . . Parts Stripped . | . . . . Power Chain Reactions . | . . . . Alert | -11 -10 -9 -8 ------- Run | Yrd Mat Mat Mat Maximum Alert Level 1 | . . 1 1 Low Security (%) 82 | 100 100 82 64 Level 1 17 | . . 17 35 Level 2 . | . . . . Level 3 . | . . . . Level 4 . | . . . . Level 5 . | . . . . High Security . | . . . . Max Security . | . . . . Peak Influence 307 | 5 139 307 288 Initial 118 | . . 5 118 Average 113 | 1 49 130 160 Influence Increases 2264 | 20 411 1023 810 Destroy 0b10 Robot/C 1220 | . 260 520 440 Destroy 0b10 Robot/NC 250 | 20 15 125 90 Destroy Leader 360 | . 60 178 122 Successful Hack 26 | . . 12 14 Disable Machine 105 | . 15 45 45 Destroy Structure 123 | . 1 38 84 Partial Spotted 30 | . . 30 . Lose Combat Pursuer 150 | . 60 75 15 Influence Decreases 1987 | 20 398 754 815 Entered New Map 172 | . . 8 164 Time Decay 1523 | 20 368 573 562 Lost Part 292 | . 30 173 89 Squads Dispatched 9 | . 3 4 2 Investigation 2 | . 1 . 1 Extermination . | . . . . Reinforcement 7 | . 2 4 1 Assault . | . . . . Garrison . | . . . . Intercept . | . . . . Searches Triggered . | . . . . Construction Impeded 1 | . . . 1 Haulers Reinforced . | . . . . Active Scanning Responses . | . . . . Cargo Convoy Interrupts . | . . . . Stealth | -11 -10 -9 -8 --------- Run | Yrd Mat Mat Mat Distress Signals 15 | . 5 6 4 Communications Jammed . | . . . . Distress Signals . | . . . . Times Spotted 123 | . 38 50 35 Peak Tracking Total 9 | . 6 9 6 Tactical Retreats 8 | . 5 2 1 Traps | -11 -10 -9 -8 ------- Run | Yrd Mat Mat Mat Traps Triggered 3 | . 1 1 1 Indirectly . | . . . . Trap Hack Attempts . | . . . . Triggered . | . . . . Disarmed . | . . . . Reprogrammed . | . . . . Reused . | . . . . Traps Extracted . | . . . . Installed . | . . . . Triggered . | . . . . Machines | -11 -10 -9 -8 ---------- Run | Yrd Mat Mat Mat Machines Disabled 7 | . 1 3 3 Max in Single Turn 2 | . 1 1 2 Garrison Access 1 | . . . 1 Machines Repaired . | . . . . Machines Dismantled . | . . . . Machines Sabotaged . | . . . . Overloaded Fab Kills . | . . . . Hacking | -11 -10 -9 -8 --------- Run | Yrd Mat Mat Mat Machines Accessed 5 | . . 1 4 Terminals 2 | . . . 2 Fabricators . | . . . . Repair Stations 1 | . . . 1 Recycling Units . | . . . . Scanalyzers 1 | . . 1 . Garrison Access 1 | . . . 1 Total Hacks 10 | . . 2 8 Successful 7 | . . 1 6 Failed 3 | . . 1 2 Catastrophic . | . . . . Database Lockouts . | . . . . Manual . | . . . . Terminals 4 | . . . 4 Fabricators . | . . . . Repair Stations 3 | . . . 3 Recycling Units . | . . . . Scanalyzers 2 | . . 2 . Garrison Access 1 | . . . 1 Terminal Hacks 2 | . . . 2 Prototype ID Bank 1 | . . . 1 Zone Layout 1 | . . . 1 Fabricator Hacks . | . . . . Repair Station Hacks 3 | . . . 3 Scan Component 2 | . . . 2 Repair 1 | . . . 1 Recycling Unit Hacks . | . . . . Scanalyzer 1 | . . 1 . Retrieve Study 1 | . . 1 . Garrison Access Hacks 1 | . . . 1 Seal Access 1 | . . . 1 Unauthorized Hacks . | . . . . Terminals . | . . . . Fabricators . | . . . . Repair Stations . | . . . . Recycling Units . | . . . . Scanalyzers . | . . . . Garrison Access . | . . . . Data Cores Recovered 1 | . . 1 . Used . | . . . . Hacking Detections 2 | . . 1 1 Full Trace Events 1 | . . . 1 Feedback Events 1 | . . . 1 Corruption 1 | . . . 1 Feedback Blocked . | . . . . Robot Schematics Acquired . | . . . . Robots Built . | . . . . Authchips . | . . . . Time . | . . . . Total Robot Build Rating . | . . . . Part Schematics Acquired . | . . . . Parts Built . | . . . . Authchips . | . . . . Time . | . . . . Total Part Build Rating . | . . . . Part Studies Acquired 1 | . . 1 . Parts Repaired 1 | . . . 1 Time 38 | . . . 38 Parts Recycled . | . . . . Recycled Matter . | . . . . Retrieved Matter . | . . . . Retrieved Components . | . . . . Parts Scanalyzed . | . . . . Part Schematics Acquired . | . . . . Parts Damaged . | . . . . Bothacking | -11 -10 -9 -8 ------------ Run | Yrd Mat Mat Mat Used RIF Installer . | . . . . Robots Hacked . | . . . . Non-combat . | . . . . Combat . | . . . . Robot Hacks Applied . | . . . . Relay Couplers Released . | . . . . Fabnet Peak Effective % . | . . . . Robots Rewired . | . . . . Allies Hacked . | . . . . Hacks Repelled . | . . . . Allies | -11 -10 -9 -8 -------- Run | Yrd Mat Mat Mat Total Allies . | . . . . Largest Group . | . . . . Highest-Rated Group . | . . . . Highest-Rated Ally . | . . . . Total Orders . | . . . . Ally Attacks . | . . . . Total Damage . | . . . . Kills . | . . . . Allies Corrupted . | . . . . Allies Melted . | . . . . Intel | -11 -10 -9 -8 ------- Run | Yrd Mat Mat Mat Active Infowar (turns) 4196 | 26 426 2074 1670 Optics 2339 | . . 669 1670 Sensors 3238 | . 138 1975 1125 Terrain 314 | 26 288 . . Robot Analysis Total . | . . . . Derelict Logs Recovered . | . . . . Drone Launches . | . . . . Drone Recoveries . | . . . . Exploration | -11 -10 -9 -8 ------------- Run | Yrd Mat Mat Mat Turns Passed 5463 | 137 1533 2123 1670 Spaces Moved 3894 | 91 1044 1641 1118 Core 307 | 6 . 23 278 Treads 43 | . . 26 17 Legs 2913 | 85 1044 961 823 Wheels 91 | . . 91 . Hover . | . . . . Flight 540 | . . 540 . Fastest Speed 37 | 50 120 37 50 Average Speed 111 | 117 120 103 116 Slowest Speed 350 | 120 190 200 350 Overloaded Moves . | . . . . Propulsion Burnouts . | . . . . Robots Hopped 1 | . . 1 . Potential Cave-ins . | . . . . Cave-ins Triggered . | . . . . Exploration Rate (%) 60 | 4 91 92 56 Regions Visited 3 Branch Regions . Pre-discovered Areas . | . . . . Known Exits Taken 2 | . 1 1 . Unknown Exits Taken 1 | 1 . . . Scrap Searched . | . . . . Spaces Dug 24 | . . 15 9 Terrain Destroyed 178 | . . 61 117 Melee . | . . . . Projectile . | . . . . AOE 178 | . . 61 117 Terrain Rammed . | . . . . Walls Destroyed . | . . . . Machines Disabled . | . . . . Actions | -11 -10 -9 -8 --------- Run | Yrd Mat Mat Mat Total 4534 | 105 1211 1879 1339 Wait 174 | . 70 27 77 Move 3889 | 90 1043 1638 1118 Hop 1 | . . 1 . Pick Up 32 | 2 9 14 7 Fast Attach 59 | 7 5 26 21 Attach 24 | . 2 15 7 Detach 17 | . 3 9 5 Swap 16 | . 9 4 3 Drop 45 | . 11 22 12 Fire 139 | 6 59 52 22 Melee 138 | . . 71 67 Ram . | . . . . Kick . | . . . . Crush . | . . . . Escape Stasis . | . . . . Rewire . | . . . . Trap . | . . . . Miscellaneous . | . . . . Route ------- -11/Scrapyard -10/Materials (discovered 4 exits: *Mat x2 / *Min x2) -9/Materials (discovered 3 exits: *Mat x2 / *Min) -8/Materials (discovered 1 exit: *Fac) History --------- Turn | Location | Event 9 | -11/Scrapyard | Discovered new exit (range 15) 138 | -11/Scrapyard | Entered Materials 264 | -10/Materials | Discovered new exit (range 16) 308 | -10/Materials | Build established: Mutant 392 | -10/Materials | Identified exit to Materials 606 | -10/Materials | Discovered exit to Materials (range 15) 660 | -10/Materials | Discovered new exit (range 13) 925 | -10/Materials | Identified exit to Mines 1003 | -10/Materials | Core integrity fell below 50% 1338 | -10/Materials | Derelicts attacked the area 1358 | -10/Materials | Core integrity fell below 20% 1543 | -10/Materials | Discovered exit to Mines (range 16) 1671 | -10/Materials | Entered another Materials area 1671 | -9/Materials | Evolved 2 slots: Utility x2 1796 | -9/Materials | Lost 7 parts (1p3n3w) 2236 | -9/Materials | Discovered new exit (range 16) 2291 | -9/Materials | Identified exit to Mines 2348 | -9/Materials | Core integrity fell below 50% 2366 | -9/Materials | Lost 3 parts (1p1n1u) 3144 | -9/Materials | Lost 3 parts (2n1u) 3160 | -9/Materials | Core integrity fell below 20% 3211 | -9/Materials | Discovered new exit (range 18) 3217 | -9/Materials | Identified exit to Materials 3543 | -9/Materials | Discovered exit to Materials (range 5) 3794 | -9/Materials | Entered another Materials area 3794 | -8/Materials | Evolved 2 slots: Utility x2 3953 | -8/Materials | Build established: Assassin 4134 | -8/Materials | Lost 6 parts (1p2n2u1w) 4331 | -8/Materials | Core integrity fell below 50% 4350 | -8/Materials | Build established: Mutant 4615 | -8/Materials | Discovered new exit (range 17) 4639 | -8/Materials | Identified exit to Factory 4759 | -8/Materials | Repaired Katana? 4885 | -8/Materials | Build established: Scavenger-Assassin 5215 | -8/Materials | Core integrity fell below 20% 5258 | -8/Materials | Destroyed 7 combat bots 5464 | -8/Materials | Destroyed by G-47 Trooper with Particle Gun Last Messages --------------- 05297_ Connecting with Garrison Access... >>Seal Access door sealed. 05298_ K-01 Serf collects debris. 05310_ J%BGGUS5YELCTLBYLHQ%#CSP9MRQ6EFHYNIJ&I|N 05311_ K-01 Serf collects debris. 05350_ Critical hit (Burn: +37). 05353_ Y-45 Defender destroyed. 05359_ Acquired Lgt. Armor Plating. 05395_ Connecting with Terminal... >>Layout(Zone) Retrieving Zone 8N layout... Downloaded map data. 05413_ System corrupted: IFF burst signal emitted. 05415_ Acquired Cryofiber Web. 05419_ Dropped Cryofiber Web. 05420_ Acquired Imp. Propulsion Shielding. 05454_ W-25 Informer sends out distress signal. 05462_ Katana follow-up attack on G-47 Trooper. Map ----- +----------------------------------------------------+ | ???????????????????????????????????????????? | | ???????????????????????????????????????????? | | ??????????????##+#+######+##???????????????? | | ?????????????? ?????????????? | | ??????????????? !????????????? | | ??????????????? ?????????????? | | ????????????#### ??????????????? | | ???????????##! #??????????????? | | ???????????#! #??????????????? | | ???????????#! #??????????????? | | ????????????! !* #######????????? | | ????????????? * # =#????????? | | ?????????????? # #????????? | | ???????????????# # """ #????????? | | ???????????????# # """ #????????? | | ???????????????# # """ #????????? | | ################ # #???###??? | | # ## ## !# """ #####%#### | | # """ ## ## # """ ##]=* [ # | | # """ ## ## """ # """ ## =! # | | # """ ## ## """"" # ## # | | # ## *==## """"" # ## # | | # ## !%=## """""a # !## """# | | # "" =## = ## """ ###+####| """# | | # "" ## ##%= gb # """# | | # "T ## %## g@ # """# | | # "" ##[!! [=+% % + """# | | # "" ##[!! !## % # # | | # =##[! ## r # """# | | ###+#### ## ###;#### """# | | ###+##### # ## """# | | " " # ##" """# | | "G" # ##T """# | | " # ##" # | | # ## !# | | [=% # """ ########## | | ###+#######+#### # """ #????????? | | ########??? ???? #??#r # """ #????????? | | ???????????? ??? #??# # """ #????????? | | ????????????? "?? =#??#w # """ #????????? | | ????????????????? #??# # #????????? | | ???????????????? #??# # #????????? | | ?????????????????" #??# ###########????? | | ?????????????????? ???# # #????? | | ??????????????????#??## # #????? | | ????????????????????? # # #????? | | ????????????????????? + + #????? | | ????????????????????? # # """ #????? | | ???????????????????????????????????????????? | | ???????????????????????????????????????????? | +----------------------------------------------------+ Best States ------------- Heat Dissipation 31 Energy Generation 14 Energy Capacity 265 Matter Stores 300 Matter Capacity 300 Sight Range 18 Robot Scan Range 15 Terrain Scan Range 16 Terrain Scan Density 10 Armor Coverage 300 Core Shielding 20 Power Shielding 66 Propulsion Shielding 66 Evasion (%) 63 Recoil Reduction 2 Item Schematics ----------------- None Robot Schematics ------------------ None Fabricated ------------ Nothing Repaired ---------- Katana | 36% | -8/Materials Studied --------- Mace | -9/Materials | Hacked Alien Tech Used ----------------- None Achievements -------------- Hammer Time Challenges ------------ None Game ------ Seed DiametricPiercingLink Manual? 0 Play Time 01:06:44 Cumulative 34.8 hours Start 2026.02.12 @ 19:01:15 End 2026.02.12 @ 20:30:16 Sessions 1 Manual Loads 0 Difficulty Rogue Special Mode None Game No. 38 Rogue 38 Adventurer 0 Explorer 0 Win Type - Total 0 Types 0/0/0/0/0/0/0/0/0/0 Lore% 16 Gallery% 15 Achievement% 14 Wizard Run 0 Options --------- Layout 1 ASCII 0 Keyboard 1 Movement Numpad Keybinds 0 Fullscreen 2 Font 24/Cog Map View 50x35 Zoom Use 0% Tactical HUD 1 Map Filters NONE Filters NONE Steam 1 RUN: 4361b0c8-9196-4f97-80cb-99c5778b53b2